Cogmind - Beta 15 @@@ ROGUE MODE // 2025.05.28 @ 23:40:47 Player: ChromeKnight Result: Core destroyed Performance ------------- Evolutions (0) 0 Regions Visited (3) 600 Robots Destroyed (30) 150 Value Destroyed (863) 863 Prototype IDs (11) 220 Alien Tech Used (0) 0 Bonus (-7) -7 TOTAL SCORE: 1826 Bonus ------- Friendly Fire -7 Cogmind --------- Core Integrity 0/250 Matter 76/300 Energy 125/125 System Corruption 0% Temperature Cool (0) Movement Treading (160) Location -10/Subcaves Parts ------- > --- POWER (1) -------- Light Ion Engine > --- PROPULSION (2) --- Spiked Treads Spiked Treads > --- UTILITY (2) ------ Scrap Shield > --- WEAPON (2) ------- Shotgun Shotgun > --- INVENTORY (5) ---- Aluminum Leg Aluminum Leg Large Storage Unit Visual Processing Unit Shotgun Peak State ------------ > --- POWER ------------ Light Ion Engine > --- PROPULSION ------- Light Treads Light Treads Spiked Treads Spiked Treads > --- UTILITY ---------- High-capacity Storage Unit Propulsion Shielding Tower Shield > --- WEAPON ----------- Battle Cannon Battle Cannon Battle Cannon Rocket Launcher > --- INVENTORY -------- Aluminum Leg Aluminum Leg Improved Heat Sink Visual Processing Unit Propulsion Shielding Weapon Shielding Autogun Autogun Autogun Shotgun Shotgun Shotgun [Rating: 39] Favorites ----------- Power Light Ion Engine Engine Light Ion Engine Propulsion Light Treads Treads Light Treads Leg Aluminum Leg Utility Propulsion Shielding Storage High-capacity Storage Unit Protection Propulsion Shielding Weapon Autogun Ballistic Gun Autogun Ballistic Cannon Battle Cannon Launcher Rocket Launcher Build | -11 -10 -10 -10 ------- Run | Yrd Mat Min Sub Slots Evolved . | . . . . Power . | . . . . Propulsion . | . . . . Utility . | . . . . Weapon . | . . . . Parts Attached 27 | 8 4 1 14 Power 1 | 1 . . . Engine 1 | 1 . . . Core . | . . . . Reactor . | . . . . Propulsion 7 | 4 . . 3 Treads 5 | 2 . . 3 Leg 2 | 2 . . . Wheel . | . . . . Hover . | . . . . Flight . | . . . . Utility 7 | 1 2 1 3 Device . | . . . . Storage 3 | 1 1 1 . Processor . | . . . . Hackware . | . . . . Protection 4 | . 1 . 3 Artifact . | . . . . Weapon 12 | 2 2 . 8 Energy Gun . | . . . . Energy Cannon . | . . . . Ballistic Gun 8 | 2 2 . 4 Ballistic Cannon 3 | . . . 3 Launcher 1 | . . . 1 Special Weapon . | . . . . Impact Weapon . | . . . . Slashing Weapon . | . . . . Piercing Weapon . | . . . . Special Melee Weapon . | . . . . Unidentified Prototypes . | . . . . Parts Lost 2 | . . . 2 Power . | . . . . Propulsion . | . . . . Utility 1 | . . . 1 Weapon 1 | . . . 1 Highest Loss Streak 2 | . . . 2 To Critical Strikes . | . . . . Average Backups 13 | 1 12 14 14 Power . | . . . . Propulsion 3 | . 2 3 3 Utility 5 | . 3 6 5 Weapon 5 | . 5 5 5 Tool/Special . | . . . . Unused Backups 16 | . 7 1 8 Power 1 | . 1 . . Propulsion 3 | . . . 3 Utility 6 | . 1 1 4 Weapon 6 | . 5 . 1 Tool/Special . | . . . . Average Slot Usage (%) 94 | . 97 100 91 Engine 12 | . 14 14 11 Treads 27 | . 28 28 27 Storage 12 | . 17 14 10 Protection 12 | . 8 14 12 Ballistic Gun 18 | . 28 28 11 Ballistic Cannon 5 | . . . 9 Launcher 4 | . . . 7 Peak Build Rating 39 | 6 11 11 39 Average Rating 16 | 4 10 11 20 On Entrance 7 | . 6 11 11 Naked Turns . | . . . . Heaviest Build 95 | 11 34 50 95 Greatest Support 80 | 40 40 40 80 Greatest Overweight (x) 1 | . . 1 1 Average Overweight (x) . | . . . . Largest Inventory Capacity 20 | 8 15 20 20 Average Capacity 16 | 6 14 15 18 Most Carried 20 | 3 15 15 20 Average Carried 13 | 1 12 14 14 Final Capacity 20 | 8 15 20 5 Final Carried 15 | 3 14 15 5 Class Distribution -------------------- 78% | Mutant 16% | Derelict-Tank 4% | Derelict-Mutant Dominant Class ---------------- Mutant | -10/Materials Mutant | -10/Mines Mutant | -10/Subcaves Resources | -11 -10 -10 -10 ----------- Run | Yrd Mat Min Sub Matter Collected 1204 | 241 263 26 674 Remotely . | . . . . Salvage Created 698 | . 290 . 408 Parts 58 | . 21 . 37 Haulers Intercepted . | . . . . Recyclers Shooed . | . . . . Parts Field Recycled . | . . . . Retrieved Matter . | . . . . Parts Self-Destructed 11 | . . . 11 Prevented . | . . . . Kills | -11 -10 -10 -10 ------- Run | Yrd Mat Min Sub Combat Hostiles Destroyed 27 | . 9 . 18 Guns 14 | . 9 . 5 Cannons 8 | . . . 8 AOE 5 | . . . 5 Classes Destroyed 5 | . 4 . 1 Operator 1 | . 1 . . Watcher 2 | . 2 . . Swarmer 9 | . 6 . 3 Grunt 3 | . 3 . . Subdweller 15 | . . . 15 Best Kill Streak 3 | . 3 . 3 Combat Bots Only 3 | . 3 . 3 Max Kills in Single Turn 2 | . 1 . 2 Gunslinging . | . . . . Exploded 2 | . . . 2 Melee . | . . . . Uniques/NPCs Destroyed . | . . . . Combat | -11 -10 -10 -10 -------- Run | Yrd Mat Min Sub Hostile Shots Fired 102 | . 24 . 78 Missed 26 | . 7 . 19 Hits 76 | . 17 . 59 Projectile 76 | . 17 . 59 AOE 1 | . . . 1 Damage Taken 1406 | . 178 . 1228 Core 257 | . 56 . 201 Absorbed by Shields . | . . . . Redirected to Shielding 43 | . 2 . 41 Core Remaining (%) 100 | 100 . . . Volleys Fired 92 | . 24 1 67 Largest 4 | . 2 2 4 Hottest 132 | . 46 46 132 Shots Fired 179 | . 48 2 129 Gun 95 | . 48 2 45 Cannon 71 | . . . 71 Launcher 13 | . . . 13 Special . | . . . . Kinetic 166 | . 48 2 116 Thermal . | . . . . Explosive 13 | . . . 13 Electromagnetic . | . . . . Robot Hit Streak 12 | . 9 1 12 Robot Miss Streak 3 | . 3 1 3 Penetration Max . | . . . . Secondary Targets 3 | . 1 . 2 Max Gunslinging Chain 1 | . 1 . 1 Shots Hit Robots 97 | . 31 1 65 Core Hits 47 | . 16 . 31 Critical Kills . | . . . . Critical Parts Destroyed . | . . . . Critical Strikes 1 | . . . 1 Blast 1 | . . . 1 Melee Attacks . | . . . . Impact . | . . . . Slashing . | . . . . Piercing . | . . . . Sneak Attacks . | . . . . Combat Hostiles . | . . . . Follow-up Attacks . | . . . . Damage Inflicted 2162 | . 467 16 1679 Guns 662 | . 467 16 179 Cannons 1015 | . . . 1015 Explosions 471 | . . . 471 Melee . | . . . . Ramming 14 | . . . 14 Kinetic 1677 | . 467 16 1194 Thermal . | . . . . Explosive 471 | . . . 471 Electromagnetic . | . . . . Impact . | . . . . Slashing . | . . . . Piercing . | . . . . Highest Corruption . | . . . . Average Corruption . | . . . . Corruption Purged . | . . . . Corruption Blocked . | . . . . Overload Shots . | . . . . Overflow Damage . | . . . . Projectiles . | . . . . Explosions . | . . . . Melee . | . . . . Knockbacks 6 | . . . 6 Impact . | . . . . Kinetic 6 | . . . 6 Secondary . | . . . . Self-Inflicted Damage 108 | . . . 108 Shots 3 | . . . 3 Rammed . | . . . . Targets Rammed . | . . . . Kicked . | . . . . Crushed . | . . . . Highest Temperature 31 | . 31 6 30 Average Temperature 10 | . 10 4 12 Received Heat Transfer 162 | . 69 . 93 Siege Activations . | . . . . Martial Activations . | . . . . Shielding Activations . | . . . . Robots Disrupted . | . . . . Combat Hostiles . | . . . . Robots Corrupted . | . . . . Combat Hostiles . | . . . . Parts Fried . | . . . . Impact Corruptions . | . . . . Robots Melted . | . . . . Combat Hostiles . | . . . . Parts Melted . | . . . . Heat Transferred . | . . . . Parts Sabotaged . | . . . . Parts Stolen . | . . . . Parts Stripped . | . . . . Power Chain Reactions . | . . . . Alert | -11 -10 -10 -10 ------- Run | Yrd Mat Min Sub Maximum Alert Level . | . . . . Low Security (%) 100 | 100 100 100 . Level 1 . | . . . . Level 2 . | . . . . Level 3 . | . . . . Level 4 . | . . . . Level 5 . | . . . . High Security . | . . . . Max Security . | . . . . Peak Influence 110 | . 110 28 . Initial 28 | . . 28 . Average 14 | . 30 1 . Influence Increases 359 | . 289 . 70 Destroy 0b10 Robot/C 240 | . 180 . 60 Destroy 0b10 Robot/NC 15 | . 15 . . Destroy Leader 44 | . 34 . 10 Successful Hack 14 | . 14 . . Disable Machine 15 | . 15 . . Destroy Structure 1 | . 1 . . Lose Combat Pursuer 30 | . 30 . . Influence Decreases 359 | . 216 73 70 Entered New Map 45 | . . 45 . Time Decay 314 | . 216 28 70 Squads Dispatched 1 | . 1 . . Investigation 1 | . 1 . . Extermination . | . . . . Reinforcement . | . . . . Assault . | . . . . Garrison . | . . . . Intercept . | . . . . Searches Triggered . | . . . . Construction Impeded . | . . . . Haulers Reinforced . | . . . . Active Scanning Responses . | . . . . Cargo Convoy Interrupts . | . . . . Stealth | -11 -10 -10 -10 --------- Run | Yrd Mat Min Sub Distress Signals 1 | . 1 . . Communications Jammed . | . . . . Distress Signals . | . . . . Times Spotted 31 | . 13 . 18 Peak Tracking Total 6 | . 6 . 3 Tactical Retreats 1 | . 1 . . Traps | -11 -10 -10 -10 ------- Run | Yrd Mat Min Sub Traps Triggered 1 | . 1 . . Indirectly . | . . . . Trap Hack Attempts . | . . . . Triggered . | . . . . Disarmed . | . . . . Reprogrammed . | . . . . Reused . | . . . . Traps Extracted . | . . . . Installed 1 | . . . 1 Triggered . | . . . . Machines | -11 -10 -10 -10 ---------- Run | Yrd Mat Min Sub Machines Disabled 4 | . 1 . 3 Max in Single Turn 2 | . 1 . 2 Machines Repaired . | . . . . Machines Dismantled . | . . . . Machines Sabotaged . | . . . . Overloaded Fab Kills . | . . . . Hacking | -11 -10 -10 -10 --------- Run | Yrd Mat Min Sub Machines Accessed 6 | . 4 . 2 Terminals 4 | . 4 . . Fabricators . | . . . . Repair Stations . | . . . . Recycling Units . | . . . . Scanalyzers . | . . . . Garrison Access . | . . . . Total Hacks 26 | . 12 . 14 Successful 19 | . 5 . 14 Failed 7 | . 7 . . Catastrophic 1 | . 1 . . Database Lockouts . | . . . . Manual 12 | . 12 . . Terminals 12 | . 12 . . Fabricators . | . . . . Repair Stations . | . . . . Recycling Units . | . . . . Scanalyzers . | . . . . Garrison Access . | . . . . Terminal Hacks 14 | . . . 14 Record 13 | . . . 13 Proto ID Catalog 1 | . . . 1 Fabricator Hacks . | . . . . Repair Station Hacks . | . . . . Recycling Unit Hacks . | . . . . Scanalyzer . | . . . . Garrison Access Hacks . | . . . . Unauthorized Hacks 5 | . 5 . . Terminals 5 | . 5 . . Assimilate 1 | . 1 . . Botnet 3 | . 3 . . Operators 1 | . 1 . . Fabricators . | . . . . Repair Stations . | . . . . Recycling Units . | . . . . Scanalyzers . | . . . . Garrison Access . | . . . . Data Cores Recovered . | . . . . Used . | . . . . Hacking Detections 3 | . 3 . . Full Trace Events 1 | . 1 . . Feedback Events . | . . . . Feedback Blocked . | . . . . Robot Schematics Acquired . | . . . . Robots Built . | . . . . Authchips . | . . . . Time . | . . . . Total Robot Build Rating . | . . . . Part Schematics Acquired . | . . . . Parts Built . | . . . . Authchips . | . . . . Time . | . . . . Total Part Build Rating . | . . . . Parts Repaired . | . . . . Time . | . . . . Parts Recycled . | . . . . Recycled Matter . | . . . . Retrieved Matter . | . . . . Retrieved Components . | . . . . Parts Scanalyzed . | . . . . Part Schematics Acquired . | . . . . Parts Damaged . | . . . . Bothacking | -11 -10 -10 -10 ------------ Run | Yrd Mat Min Sub Used RIF Installer . | . . . . Robots Hacked . | . . . . Non-combat . | . . . . Combat . | . . . . Robot Hacks Applied . | . . . . Relay Couplers Released . | . . . . Fabnet Peak Effective % . | . . . . Robots Rewired . | . . . . Allies Hacked . | . . . . Hacks Repelled . | . . . . Allies | -11 -10 -10 -10 -------- Run | Yrd Mat Min Sub Total Allies . | . . . . Largest Group . | . . . . Highest-Rated Group . | . . . . Highest-Rated Ally . | . . . . Total Orders . | . . . . Ally Attacks . | . . . . Total Damage . | . . . . Kills . | . . . . Allies Corrupted . | . . . . Allies Melted . | . . . . Intel | -11 -10 -10 -10 ------- Run | Yrd Mat Min Sub Active Infowar (turns) . | . . . . Robot Analysis Total . | . . . . Derelict Logs Recovered 2 | . . 1 1 Drone Launches . | . . . . Drone Recoveries . | . . . . Exploration | -11 -10 -10 -10 ------------- Run | Yrd Mat Min Sub Turns Passed 4355 | 70 876 1006 2403 Spaces Moved 1805 | 45 318 535 907 Core 7 | 7 . . . Treads 1780 | 20 318 535 907 Legs 18 | 18 . . . Wheels . | . . . . Hover . | . . . . Flight . | . . . . Fastest Speed 50 | 50 160 160 160 Average Speed 198 | 126 160 164 235 Slowest Speed 260 | 160 160 240 260 Overloaded Moves . | . . . . Propulsion Burnouts . | . . . . Robots Hopped . | . . . . Potential Cave-ins . | . . . . Cave-ins Triggered . | . . . . Exploration Rate (%) 55 | 4 63 97 58 Regions Visited 3 Branch Regions 2 Pre-discovered Areas . | . . . . Known Exits Taken . | . . . . Unknown Exits Taken 3 | 1 1 1 . Scrap Searched 7 | . . 1 6 Spaces Dug 10 | . . . 10 Terrain Destroyed 78 | . . . 78 Melee . | . . . . Projectile . | . . . . AOE 78 | . . . 78 Terrain Rammed 1 | . . . 1 Walls Destroyed . | . . . . Machines Disabled . | . . . . Actions | -11 -10 -10 -10 --------- Run | Yrd Mat Min Sub Total 2425 | 55 654 659 1057 Wait 421 | . 277 121 23 Move 1802 | 44 317 534 907 Hop . | . . . . Pick Up 44 | 1 20 1 22 Fast Attach 17 | 8 2 . 7 Attach 6 | . . . 6 Detach 2 | 2 . . . Swap 13 | . 2 1 10 Drop 26 | . 12 1 13 Fire 92 | . 24 1 67 Melee . | . . . . Ram . | . . . . Kick . | . . . . Crush . | . . . . Escape Stasis . | . . . . Rewire . | . . . . Trap 1 | . . . 1 Miscellaneous 1 | . . . 1 Route ------- -11/Scrapyard -10/Materials (discovered 3 exits: [*Mat] / [*Min x2]) -10/Mines (discovered 3 exits: [*Mat x2] / *Sub) -10/Subcaves History --------- Turn | Location | Event 7 | -11/Scrapyard | Discovered new exit (range 16) 71 | -11/Scrapyard | Entered Materials 204 | -10/Materials | Discovered new exit (range 12) 315 | -10/Materials | Build established: Mutant 573 | -10/Materials | Discovered new exit (range 13) 898 | -10/Materials | Discovered new exit (range 16) 947 | -10/Materials | Entered Mines 959 | -10/Mines | Learned Materials terminal intel 971 | -10/Mines | Discovered new exit (range 8) 982 | -10/Mines | Received a Rocket Launcher from a helpful Derelict 1343 | -10/Mines | Discovered new exit (range 4) 1581 | -10/Mines | Discovered new exit (range 8) 1953 | -10/Mines | Entered Subcaves 1961 | -10/Subcaves | Learned Materials security intel 2205 | -10/Subcaves | Ambushed by Subdweller buried in earth 2205 | -10/Subcaves | Ambushed by Subdweller buried in earth 2225 | -10/Subcaves | Visited 4L-MR0's lab 2342 | -10/Subcaves | Found Tower Shield 2736 | -10/Subcaves | Shifting Twisted Machinery released Sub. Machine Gun 2854 | -10/Subcaves | Shifting Twisted Machinery released Sub. Shrapnel Launcher 2899 | -10/Subcaves | Visited Clippyterm 2909 | -10/Subcaves | Learned Research machine intel 2909 | -10/Subcaves | Learned 40 Factory zone layouts 3042 | -10/Subcaves | Shifting Twisted Machinery released Battle Cannon 3059 | -10/Subcaves | Shifting Twisted Machinery released Battle Cannon 3105 | -10/Subcaves | Attached Tower Shield, gained temporary slots: Power, Propulsion x2, Utility x2, Weapon x2 3320 | -10/Subcaves | Core integrity fell below 50% 3463 | -10/Subcaves | Build established: Derelict-Tank 3929 | -10/Subcaves | Core integrity fell below 20% 4212 | -10/Subcaves | Shifting Twisted Machinery released Sub. Machine Gun 4232 | -10/Subcaves | A swath of the cavern ceiling suddenly collapsed 4356 | -10/Subcaves | Core destroyed Last Messages --------------- 04066_ Dropped Battle Cannon. 04067_ Dropped Autogun. 04073_ Subatomizers dissect the Battle Cannon. 04084_ Subatomizers dissect the Battle Cannon, destroying it. 04085_ Dropped Hcp. Storage Unit. 04088_ Acquired Aluminum Leg. 04096_ Acquired Lrg. Storage Unit. 04097_ Subatomizers dissect the Imp. Heat Sink. 04122_ Scrap Shield Fragment affixed to Scrap Shield (+40). Sub. Machine Gun falls loose from the Twisted Machinery. A swath of the cavern ceiling suddenly collapses. 04257_ 18-6F2(R) destroyed. 04260_ Acquired 44 matter. 04356_ Rammed Twisted Machinery. 04356_ Destabilizing: Core damaged (-10). Map ----- +----------------------------------------------------+ | ???????????????????#" "& #" " ## ### #?#"" | | ???????????????????# # ""## #?# #?#"""# | | ???????????????########## "### ### ####"### | | ???????????????? ??## ##### # "?# | | ????????????????? ??# ] ##?# # #?" | | ??????????????????# ?##&& ##### #### #?# | | ??????????????????# ### !! #??#########?? ""##?? | | ?????????????????## =!& #??###???????# ""#??? | | ????????????????##"" #??# ##??????##""#### | | ????????????????#" " ##??# #?####?? # # | | ????????????????#"" #??## ### ##? | | ????????????????## =& ##??# ## ### | | ?????????????????## ## ##??# ### ## | | ??????????????????# ###&! ##### # ## | | ??????????????????# #??# ## # | | ??????????????????# ???# [ | | ??????????????????# ???## ! & # | | ?????????????????? ????## # ### ## & ## | | ?????????????????# #??????####### #### ## | | ?????????????????### ???????### ### # | | ??????????????????## ??????# ### ### | | ??????????????????# ??????#"" " ### | | ??????????????????? ?????#"" " # | | ????????????????????? ######"" " # # | | ??????????????????????# """#""" ### ### | | ??????????????????????##"@"""#" ##?### ## | | ??????????????????????#"";##;# #????##### # | | ??????????????????????### ##?#[ ##???????# # | | ?????????????????????####;#??#" #???##??# ] | | ?????????????????????#""";##?## ##???# #?# ! | | ?????????????????????#""##;########????# ### ! | | ?????????????????????#"#" # "[""##????## ?## & | | ?????????????????????##""""##"### #???# ??### | | ??????????????????????#####"#!# "#??# ????# | | ???????????????????????## ###### "#??# #????# | | ????????????????????????#?????? ##??# #????##! | | ??????????????????????????????? "???# "##??## | | ???????????????????????????????# ######"" #### # | | ???????????????????????????????#""" ### | | ???????????????????????????????" " "## | | ???????????????????????????????##### "" ##"## | | ??????????????????????????# """" "" ######? | | ??????????????????????????# "" ##?????? | | ???????????????????????????# ##"# "##??????? | | ??????????????????????????????????#?# """#???????? | | ????????????????????????????????????##" #???????? | | ?????????????????????????????????????#####???????? | | ?????????????????????????????????????????????????? | | ?????????????????????????????????????????????????? | | ?????????????????????????????????????????????????? | +----------------------------------------------------+ Best States ------------- Heat Dissipation 25 Energy Generation 10 Energy Capacity 125 Matter Stores 300 Matter Capacity 300 Sight Range 16 Terrain Scan Density 10 Armor Coverage 2000 Propulsion Shielding 33 Evasion (%) 50 Recoil Reduction 4 Item Schematics ----------------- None Robot Schematics ------------------ None Fabricated ------------ Nothing Repaired ---------- Nothing Alien Tech Used ----------------- None Achievements -------------- None Challenges ------------ None Game ------ Seed ShrapnelShadeRail Manual? 0 Play Time 00:20:21 Cumulative 461.8 hours Start 2025.05.28 @ 23:18:26 End 2025.05.28 @ 23:40:47 Sessions 1 Manual Loads 0 Difficulty Rogue Special Mode None Game No. 794 Rogue 639 Adventurer 148 Explorer 7 Win Type - Total 22 Types 17/1/3/1/0/0/0/0/0/0 Lore% 56 Gallery% 76 Achievement% 74 Wizard Run 0 Options --------- Layout 1 ASCII 0 Keyboard 0 Movement Numpad Keybinds 0 Fullscreen 2 Font 24/Smallcaps Map View 50x40 Zoom Use 0% Tactical HUD 1 Map Filters NONE Filters NONE Steam 1 RUN: 75d06ae6-a874-42d9-b64c-174b4a65161e